[Event "Late-Titled-Tuesday-Blitz-March-05-2024"]
[Site "Chess.com"]
[Date "2024.03.05"]
[Round "11"]
[White "BabageldiAnnaberdiyev"]
[Black "masterofpuppets2"]
[Result "1-0"]
[WhiteElo "2618"]
[BlackElo "2490"]
[TimeControl "180+1"]
[EndTime "15:58:06 PST"]
[Termination "BabageldiAnnaberdiyev won by resignation"]

1. e4 {[%clk 0:03:00.9]} 1... e5 {[%clk 0:03:00.5]} 2. Nf3 {[%clk 0:03:00.9]}
2... Nc6 {[%clk 0:03:01.1]} 3. Bc4 {[%clk 0:03:01.4]} 3... Nf6 {[%clk
0:03:00.6]} 4. d4 {[%clk 0:03:01.4]} 4... exd4 {[%clk 0:03:00.4]} 5. O-O {[%clk
0:03:02]} 5... Nxe4 {[%clk 0:02:59.6]} 6. Re1 {[%clk 0:03:02.3]} 6... d5 {[%clk
0:03:00.2]} 7. Bxd5 {[%clk 0:03:03]} 7... Qxd5 {[%clk 0:03:01.1]} 8. Nc3 {[%clk
0:03:03.2]} 8... Qd7 {[%clk 0:03:01.8]} 9. Rxe4+ {[%clk 0:03:02]} 9... Be7
{[%clk 0:03:01.5]} 10. Nxd4 {[%clk 0:03:02.4]} 10... f5 {[%clk 0:03:00.6]} 11.
Rf4 {[%clk 0:03:01.8]} 11... O-O {[%clk 0:03:00.1]} 12. Nxc6 {[%clk 0:02:53.3]}
12... Qxc6 {[%clk 0:02:59.4]} 13. Qd5+ {[%clk 0:02:36]} 13... Qxd5 {[%clk
0:02:59.3]} 14. Nxd5 {[%clk 0:02:36.9]} 14... Bd6 {[%clk 0:03:00]} 15. Rd4
{[%clk 0:02:25.7]} 15... Be6 {[%clk 0:02:56]} 16. Bf4 {[%clk 0:02:23.9]} 16...
Rfd8 {[%clk 0:02:39.4]} 17. Rad1 {[%clk 0:02:18.1]} 17... Bc5 {[%clk 0:02:22.5]}
18. Nf6+ {[%clk 0:02:12.5]} 1-0

[Event "Late-Titled-Tuesday-Blitz-March-05-2024"]
[Site "Chess.com"]
[Date "2024.03.05"]
[Round "11"]
[White "picturesquecheck"]
[Black "jinxy2009"]
[Result "1-0"]
[WhiteElo "2412"]
[BlackElo "2207"]
[TimeControl "180+1"]
[EndTime "15:58:10 PST"]
[Termination "picturesquecheck won by checkmate"]

1. e4 {[%clk 0:03:00.9]} 1... c5 {[%clk 0:02:59.8]} 2. Nf3 {[%clk 0:03:01]} 2...
Nc6 {[%clk 0:03:00.2]} 3. d4 {[%clk 0:03:01.4]} 3... cxd4 {[%clk 0:03:01.1]} 4.
Nxd4 {[%clk 0:03:02.1]} 4... Nf6 {[%clk 0:03:01.6]} 5. Nc3 {[%clk 0:03:02.4]}
5... e5 {[%clk 0:03:02.2]} 6. Ndb5 {[%clk 0:03:02.1]} 6... d6 {[%clk 0:03:02.7]}
7. Bg5 {[%clk 0:03:01.7]} 7... a6 {[%clk 0:03:02.9]} 8. Na3 {[%clk 0:03:02]}
8... b5 {[%clk 0:03:03.6]} 9. Bxf6 {[%clk 0:03:02.5]} 9... gxf6 {[%clk
0:03:03.5]} 10. Nd5 {[%clk 0:03:03.2]} 10... f5 {[%clk 0:03:04.2]} 11. Bxb5
{[%clk 0:03:00.2]} 11... axb5 {[%clk 0:03:02.8]} 12. Nxb5 {[%clk 0:03:01.1]}
12... Ra4 {[%clk 0:03:01.5]} 13. b4 {[%clk 0:02:58.9]} 13... Rxb4 {[%clk
0:02:57.2]} 14. Nbc7+ {[%clk 0:02:52.5]} 14... Kd7 {[%clk 0:02:56]} 15. O-O
{[%clk 0:02:52.6]} 15... Qg5 {[%clk 0:02:32.3]} 16. exf5 {[%clk 0:02:46.8]}
16... Rg8 {[%clk 0:02:24.8]} 17. g3 {[%clk 0:02:43.2]} 17... Rd4 {[%clk
0:02:20]} 18. Qe2 {[%clk 0:02:35.1]} 18... Ne7 {[%clk 0:02:13.8]} 19. Qb5+
{[%clk 0:02:27.5]} 19... Kd8 {[%clk 0:01:48.6]} 20. Qe8# {[%clk 0:02:25.6]} 1-0

[Event "Late-Titled-Tuesday-Blitz-March-05-2024"]
[Site "Chess.com"]
[Date "2024.03.05"]
[Round "11"]
[White "HaryKane"]
[Black "XeresLt"]
[Result "1-0"]
[WhiteElo "2598"]
[BlackElo "2481"]
[TimeControl "180+1"]
[EndTime "15:59:17 PST"]
[Termination "HaryKane won by checkmate"]

1. d4 {[%clk 0:03:00.9]} 1... Nf6 {[%clk 0:02:57.6]} 2. c4 {[%clk 0:02:50.2]}
2... g6 {[%clk 0:02:57.4]} 3. Nc3 {[%clk 0:02:49.8]} 3... d6 {[%clk 0:02:56.2]}
4. e4 {[%clk 0:02:50.2]} 4... Bg7 {[%clk 0:02:56.6]} 5. f3 {[%clk 0:02:48.6]}
5... O-O {[%clk 0:02:56.7]} 6. Be3 {[%clk 0:02:46.9]} 6... Nc6 {[%clk
0:02:56.9]} 7. Qd2 {[%clk 0:02:46.7]} 7... Re8 {[%clk 0:02:56.7]} 8. h4 {[%clk
0:02:45.3]} 8... e5 {[%clk 0:02:54.6]} 9. Nge2 {[%clk 0:02:43.5]} 9... exd4
{[%clk 0:02:48.6]} 10. Nxd4 {[%clk 0:02:44.4]} 10... Bd7 {[%clk 0:02:36.2]} 11.
O-O-O {[%clk 0:02:44.1]} 11... a6 {[%clk 0:02:34.4]} 12. h5 {[%clk 0:02:31.7]}
12... Nxh5 {[%clk 0:02:33.6]} 13. g4 {[%clk 0:02:31.4]} 13... Ng3 {[%clk
0:02:32.7]} 14. Rh2 {[%clk 0:02:14.8]} 14... Nxf1 {[%clk 0:02:23.2]} 15. Rxf1
{[%clk 0:02:13.1]} 15... Ne5 {[%clk 0:02:10.6]} 16. b3 {[%clk 0:02:01.4]} 16...
b5 {[%clk 0:02:10.1]} 17. Rfh1 {[%clk 0:01:58.7]} 17... c5 {[%clk 0:02:02.5]}
18. Rxh7 {[%clk 0:01:47.8]} 18... cxd4 {[%clk 0:02:01.2]} 19. Bxd4 {[%clk
0:01:45.8]} 19... Qf6 {[%clk 0:01:53.5]} 20. Nd5 {[%clk 0:01:44.8]} 20... Qxf3
{[%clk 0:01:52.1]} 21. Rxg7+ {[%clk 0:01:44.1]} 21... Kxg7 {[%clk 0:01:45.7]}
22. Qh6+ {[%clk 0:01:42.5]} 22... Kg8 {[%clk 0:01:44.8]} 23. Ne7+ {[%clk
0:01:35.6]} 23... Rxe7 {[%clk 0:01:43.5]} 24. Qh8# {[%clk 0:01:35.6]} 1-0

[Event "Late-Titled-Tuesday-Blitz-March-05-2024"]
[Site "Chess.com"]
[Date "2024.03.05"]
[Round "11"]
[White "Brahianzevich"]
[Black "SmirnovTimofey2000"]
[Result "1-0"]
[WhiteElo "2474"]
[BlackElo "1948"]
[TimeControl "180+1"]
[EndTime "15:59:46 PST"]
[Termination "Brahianzevich won by resignation"]

1. e4 {[%clk 0:02:59.4]} 1... e5 {[%clk 0:02:59.7]} 2. Nf3 {[%clk 0:02:59.1]}
2... Nf6 {[%clk 0:02:59.9]} 3. Nxe5 {[%clk 0:02:58.4]} 3... d6 {[%clk 0:03:00]}
4. Nf3 {[%clk 0:02:58.7]} 4... Nxe4 {[%clk 0:03:00.3]} 5. d4 {[%clk 0:02:59.6]}
5... d5 {[%clk 0:03:00.5]} 6. Bd3 {[%clk 0:03:00.3]} 6... Nc6 {[%clk 0:02:59.9]}
7. c4 {[%clk 0:03:00]} 7... Bb4+ {[%clk 0:02:59]} 8. Kf1 {[%clk 0:03:00.3]} 8...
Bf5 {[%clk 0:02:55.8]} 9. a3 {[%clk 0:03:00.1]} 9... Nd2+ {[%clk 0:02:33.8]} 10.
Bxd2 {[%clk 0:02:47.4]} 10... Bxd3+ {[%clk 0:02:31]} 11. Kg1 {[%clk 0:02:47.2]}
11... Bxd2 {[%clk 0:02:27.8]} 12. Nbxd2 {[%clk 0:02:45.8]} 12... Bxc4 {[%clk
0:02:08.3]} 13. Qc2 {[%clk 0:02:38.2]} 13... O-O {[%clk 0:02:02.4]} 14. Nxc4
{[%clk 0:02:35.8]} 14... dxc4 {[%clk 0:02:03.3]} 15. Qxc4 {[%clk 0:02:36.2]}
15... Re8 {[%clk 0:01:50]} 16. h4 {[%clk 0:02:30.2]} 16... Re4 {[%clk
0:01:48.8]} 17. Ng5 {[%clk 0:02:26.3]} 17... Qf6 {[%clk 0:01:09.2]} 18. Nxe4
{[%clk 0:02:23.6]} 18... Qe7 {[%clk 0:00:56.6]} 19. Ng3 {[%clk 0:02:13.3]} 19...
Rd8 {[%clk 0:00:53.2]} 20. Rd1 {[%clk 0:02:11.2]} 20... Ne5 {[%clk 0:00:49.2]}
21. Qe2 {[%clk 0:02:10.6]} 1-0

[Event "Late-Titled-Tuesday-Blitz-March-05-2024"]
[Site "Chess.com"]
[Date "2024.03.05"]
[Round "11"]
[White "Burgsvik"]
[Black "cristiano78"]
[Result "0-1"]
[WhiteElo "2352"]
[BlackElo "2292"]
[TimeControl "180+1"]
[EndTime "15:59:56 PST"]
[Termination "cristiano78 won by resignation"]

1. e4 {[%clk 0:03:00.9]} 1... c5 {[%clk 0:02:50.3]} 2. Nf3 {[%clk 0:02:59.2]}
2... d6 {[%clk 0:02:50.3]} 3. d4 {[%clk 0:03:00.1]} 3... cxd4 {[%clk 0:02:49.1]}
4. Nxd4 {[%clk 0:03:01]} 4... Nf6 {[%clk 0:02:49.2]} 5. Nc3 {[%clk 0:03:01]}
5... g6 {[%clk 0:02:49.5]} 6. Bc4 {[%clk 0:03:00.2]} 6... Bg7 {[%clk 0:02:48.8]}
7. Be3 {[%clk 0:03:00.7]} 7... O-O {[%clk 0:02:49]} 8. f3 {[%clk 0:03:01]} 8...
Nc6 {[%clk 0:02:49.9]} 9. Qd2 {[%clk 0:03:01.2]} 9... Bd7 {[%clk 0:02:48.6]} 10.
O-O-O {[%clk 0:02:59]} 10... Rc8 {[%clk 0:02:48.6]} 11. Bb3 {[%clk 0:02:58.8]}
11... Ne5 {[%clk 0:02:48.4]} 12. Bg5 {[%clk 0:02:58.6]} 12... Rc5 {[%clk
0:02:45.4]} 13. f4 {[%clk 0:02:58]} 13... Nc4 {[%clk 0:02:42]} 14. Bxc4 {[%clk
0:02:57.8]} 14... Rxc4 {[%clk 0:02:42]} 15. e5 {[%clk 0:02:58.1]} 15... dxe5
{[%clk 0:02:41.7]} 16. Nb3 {[%clk 0:02:58.1]} 16... Qc8 {[%clk 0:02:18.7]} 17.
Bxf6 {[%clk 0:02:56]} 17... Bxf6 {[%clk 0:02:14.1]} 18. Qxd7 {[%clk 0:02:55.8]}
18... exf4 {[%clk 0:02:13.8]} 19. Qxc8 {[%clk 0:02:51]} 19... Rfxc8 {[%clk
0:02:13.6]} 20. Rd3 {[%clk 0:02:51]} 20... Bxc3 {[%clk 0:02:12.8]} 21. Rxc3
{[%clk 0:02:50.5]} 21... Rxc3 {[%clk 0:02:13.1]} 22. bxc3 {[%clk 0:02:50.7]}
22... Rxc3 {[%clk 0:02:14]} 23. Rd1 {[%clk 0:02:50.7]} 23... Kg7 {[%clk
0:02:12.7]} 24. Rd7 {[%clk 0:02:50.2]} 24... Re3 {[%clk 0:02:12.6]} 25. Rxb7
{[%clk 0:02:47.1]} 25... Re2 {[%clk 0:02:12.6]} 26. Rxa7 {[%clk 0:02:47]} 26...
Rxg2 {[%clk 0:02:12.5]} 27. Rxe7 {[%clk 0:02:47]} 27... f3 {[%clk 0:02:12.5]}
28. Nd2 {[%clk 0:02:36.2]} 28... f2 {[%clk 0:02:11.9]} 29. Kb2 {[%clk
0:02:01.1]} 29... Rxh2 {[%clk 0:02:06.8]} 30. a4 {[%clk 0:01:58.3]} 30... Rh1
{[%clk 0:02:06.8]} 31. a5 {[%clk 0:01:57.1]} 31... Rd1 {[%clk 0:02:06.1]} 32.
Nf1 {[%clk 0:01:08.2]} 32... Rxf1 {[%clk 0:02:04.7]} 33. Kc3 {[%clk 0:01:07.1]}
33... Ra1 {[%clk 0:02:03.8]} 0-1

[Event "Late-Titled-Tuesday-Blitz-March-05-2024"]
[Site "Chess.com"]
[Date "2024.03.05"]
[Round "11"]
[White "kai_nov"]
[Black "OrtizAnahi2001"]
[Result "0-1"]
[WhiteElo "2382"]
[BlackElo "2534"]
[TimeControl "180+1"]
[EndTime "16:00:03 PST"]
[Termination "OrtizAnahi2001 won by resignation"]

1. d4 {[%clk 0:03:00.9]} 1... Nf6 {[%clk 0:02:58.3]} 2. c4 {[%clk 0:03:00.9]}
2... e6 {[%clk 0:02:58.4]} 3. Nc3 {[%clk 0:03:00.5]} 3... d5 {[%clk 0:02:58.6]}
4. cxd5 {[%clk 0:03:00]} 4... exd5 {[%clk 0:02:59.1]} 5. Bg5 {[%clk 0:03:00.1]}
5... Be7 {[%clk 0:02:59.4]} 6. e3 {[%clk 0:03:00.2]} 6... c6 {[%clk 0:02:59.8]}
7. Bd3 {[%clk 0:03:00.4]} 7... O-O {[%clk 0:02:59.8]} 8. h3 {[%clk 0:02:59.2]}
8... Nbd7 {[%clk 0:02:59.7]} 9. Qc2 {[%clk 0:02:57.3]} 9... Re8 {[%clk
0:02:59.6]} 10. Nf3 {[%clk 0:02:53.1]} 10... Nf8 {[%clk 0:02:58]} 11. Bf4 {[%clk
0:02:52.7]} 11... Ne6 {[%clk 0:02:55.8]} 12. Bh2 {[%clk 0:02:52.2]} 12... g6
{[%clk 0:02:55.5]} 13. O-O-O {[%clk 0:02:44.8]} 13... b5 {[%clk 0:02:53.2]} 14.
Kb1 {[%clk 0:02:44.4]} 14... a5 {[%clk 0:02:52.5]} 15. Ne5 {[%clk 0:02:43.2]}
15... Bb7 {[%clk 0:02:52]} 16. g4 {[%clk 0:02:42.9]} 16... b4 {[%clk 0:02:51.4]}
17. Na4 {[%clk 0:02:42.9]} 17... c5 {[%clk 0:02:44.4]} 18. dxc5 {[%clk
0:02:38.3]} 18... Rc8 {[%clk 0:02:38.5]} 19. c6 {[%clk 0:02:31.1]} 19... Bd6
{[%clk 0:02:37.6]} 20. Bb5 {[%clk 0:01:50.9]} 20... Ba8 {[%clk 0:02:35.4]} 21.
Rc1 {[%clk 0:01:19.3]} 21... Nc7 {[%clk 0:02:30.2]} 22. Nd7 {[%clk 0:00:54.4]}
22... Bxh2 {[%clk 0:02:23.6]} 23. Rxh2 {[%clk 0:00:48.1]} 23... Nxb5 {[%clk
0:02:23.5]} 24. Nab6 {[%clk 0:00:37]} 24... Rxc6 {[%clk 0:02:20.5]} 0-1

[Event "Late-Titled-Tuesday-Blitz-March-05-2024"]
[Site "Chess.com"]
[Date "2024.03.05"]
[Round "11"]
[White "rikchessmx"]
[Black "rodp92"]
[Result "0-1"]
[WhiteElo "2297"]
[BlackElo "2483"]
[TimeControl "180+1"]
[EndTime "16:00:05 PST"]
[Termination "rodp92 won by resignation"]

1. e4 {[%clk 0:02:34.6]} 1... g6 {[%clk 0:02:59.4]} 2. d4 {[%clk 0:02:32.3]}
2... c6 {[%clk 0:02:59.7]} 3. Nc3 {[%clk 0:02:32.2]} 3... d5 {[%clk 0:03:00.1]}
4. h3 {[%clk 0:02:28.6]} 4... dxe4 {[%clk 0:02:59.4]} 5. Nxe4 {[%clk 0:02:28.3]}
5... Nf6 {[%clk 0:03:00.1]} 6. Nxf6+ {[%clk 0:02:27.6]} 6... exf6 {[%clk
0:03:01]} 7. Nf3 {[%clk 0:02:27.4]} 7... Bg7 {[%clk 0:03:01.5]} 8. Bc4 {[%clk
0:02:27.3]} 8... O-O {[%clk 0:03:02]} 9. O-O {[%clk 0:02:27.7]} 9... Nd7 {[%clk
0:03:02.6]} 10. c3 {[%clk 0:02:27.4]} 10... a5 {[%clk 0:03:03]} 11. a4 {[%clk
0:02:26.9]} 11... Nb6 {[%clk 0:03:03.2]} 12. Bb3 {[%clk 0:02:25.4]} 12... Nd5
{[%clk 0:03:03.8]} 13. Re1 {[%clk 0:02:22.6]} 13... Be6 {[%clk 0:03:03.6]} 14.
Bc2 {[%clk 0:02:13]} 14... Re8 {[%clk 0:03:03.4]} 15. Bd2 {[%clk 0:02:11.9]}
15... Qb6 {[%clk 0:03:01.9]} 16. Qc1 {[%clk 0:02:10.9]} 16... Rad8 {[%clk
0:02:59.7]} 17. Rb1 {[%clk 0:02:05.4]} 17... Qc7 {[%clk 0:02:58.6]} 18. Bh6
{[%clk 0:02:04.2]} 18... Bxh6 {[%clk 0:02:57.3]} 19. Qxh6 {[%clk 0:02:03.2]}
19... Qf4 {[%clk 0:02:57.9]} 20. Qxf4 {[%clk 0:02:02.3]} 20... Nxf4 {[%clk
0:02:58.8]} 21. b4 {[%clk 0:01:58.4]} 21... axb4 {[%clk 0:02:53.2]} 22. Rxb4
{[%clk 0:01:58]} 22... Bd5 {[%clk 0:02:48.1]} 23. Rxe8+ {[%clk 0:01:44.8]} 23...
Rxe8 {[%clk 0:02:48.2]} 24. Rxb7 {[%clk 0:01:43.7]} 24... Ne2+ {[%clk 0:02:41]}
25. Kh2 {[%clk 0:01:42.4]} 25... Nxc3 {[%clk 0:02:40.9]} 26. Nd2 {[%clk
0:01:32.2]} 26... Re2 {[%clk 0:02:35.8]} 27. Bb3 {[%clk 0:01:31.6]} 27... Rxd2
{[%clk 0:02:34.2]} 28. Bxd5 {[%clk 0:01:31.6]} 28... cxd5 {[%clk 0:02:28.4]} 29.
a5 {[%clk 0:01:31.8]} 29... Ra2 {[%clk 0:02:17.7]} 30. Ra7 {[%clk 0:01:28.6]}
30... Rxf2 {[%clk 0:02:13.7]} 31. Rc7 {[%clk 0:01:28.2]} 31... Nb5 {[%clk
0:02:07.3]} 32. Rb7 {[%clk 0:01:27.6]} 32... Nxd4 {[%clk 0:02:06.5]} 33. a6
{[%clk 0:01:28]} 33... Ra2 {[%clk 0:02:05.8]} 34. a7 {[%clk 0:01:28.2]} 34...
Kg7 {[%clk 0:02:05.2]} 35. Kg3 {[%clk 0:01:28.5]} 35... Nc6 {[%clk 0:01:59.2]}
36. Kf4 {[%clk 0:01:24.2]} 36... Nxa7 {[%clk 0:01:58.9]} 37. g4 {[%clk
0:01:25.1]} 37... Nc6 {[%clk 0:01:58.3]} 38. h4 {[%clk 0:01:24.8]} 38... Ne5
{[%clk 0:01:57]} 39. g5 {[%clk 0:01:24.3]} 39... Ra4+ {[%clk 0:01:56.6]} 40. Ke3
{[%clk 0:01:21.4]} 40... Rxh4 {[%clk 0:01:55.4]} 41. gxf6+ {[%clk 0:01:21.3]}
41... Kxf6 {[%clk 0:01:55.7]} 42. Rb6+ {[%clk 0:01:21.6]} 42... Kg7 {[%clk
0:01:55.6]} 43. Rd6 {[%clk 0:01:22.1]} 43... Nc4+ {[%clk 0:01:55.3]} 0-1

[Event "Late-Titled-Tuesday-Blitz-March-05-2024"]
[Site "Chess.com"]
[Date "2024.03.05"]
[Round "11"]
[White "Shtembuliak"]
[Black "TheCavemanChess"]
[Result "1-0"]
[WhiteElo "2869"]
[BlackElo "2736"]
[TimeControl "180+1"]
[EndTime "16:00:08 PST"]
[Termination "Shtembuliak won by resignation"]

1. c4 {[%clk 0:03:00.9]} 1... e6 {[%clk 0:02:57.4]} 2. Nc3 {[%clk 0:03:00.7]}
2... d5 {[%clk 0:02:57.3]} 3. d4 {[%clk 0:03:01.3]} 3... Nf6 {[%clk 0:02:57.7]}
4. cxd5 {[%clk 0:03:01.5]} 4... exd5 {[%clk 0:02:58.6]} 5. Bg5 {[%clk
0:03:01.2]} 5... Be7 {[%clk 0:02:59.2]} 6. e3 {[%clk 0:03:01.6]} 6... O-O {[%clk
0:02:59.9]} 7. Bd3 {[%clk 0:03:01.9]} 7... Re8 {[%clk 0:03:00.7]} 8. Nge2 {[%clk
0:03:01.7]} 8... c6 {[%clk 0:02:57.7]} 9. O-O {[%clk 0:03:01.8]} 9... Nbd7
{[%clk 0:02:58.3]} 10. f3 {[%clk 0:02:58.5]} 10... Nf8 {[%clk 0:02:58.1]} 11.
Bh4 {[%clk 0:02:56.3]} 11... Ne6 {[%clk 0:02:52.2]} 12. Bf2 {[%clk 0:02:49]}
12... b5 {[%clk 0:02:39]} 13. h3 {[%clk 0:02:43.7]} 13... Bd7 {[%clk 0:02:02]}
14. e4 {[%clk 0:02:39.3]} 14... b4 {[%clk 0:02:02.3]} 15. Na4 {[%clk 0:02:38.9]}
15... dxe4 {[%clk 0:02:01.6]} 16. fxe4 {[%clk 0:02:38.8]} 16... c5 {[%clk
0:01:59.9]} 17. Nxc5 {[%clk 0:02:15.6]} 17... Nxc5 {[%clk 0:01:52.2]} 18. dxc5
{[%clk 0:02:16.5]} 18... Bc6 {[%clk 0:01:30.9]} 19. Ng3 {[%clk 0:02:13.2]} 19...
Qa5 {[%clk 0:01:26.5]} 20. e5 {[%clk 0:02:03.9]} 20... Nd7 {[%clk 0:01:18.8]}
21. e6 {[%clk 0:01:53.9]} 21... fxe6 {[%clk 0:01:17.5]} 22. Bd4 {[%clk
0:01:26.2]} 22... Bxc5 {[%clk 0:01:04.7]} 23. Bxh7+ {[%clk 0:01:24.3]} 23...
Kxh7 {[%clk 0:01:05.6]} 24. Qh5+ {[%clk 0:01:23.3]} 24... Kg8 {[%clk 0:01:06.1]}
25. Qf7+ {[%clk 0:01:23.5]} 1-0

[Event "Late-Titled-Tuesday-Blitz-March-05-2024"]
[Site "Chess.com"]
[Date "2024.03.05"]
[Round "11"]
[White "Cambek64"]
[Black "Zavgorodniy_Sergiy"]
[Result "1/2-1/2"]
[WhiteElo "2497"]
[BlackElo "2616"]
[TimeControl "180+1"]
[EndTime "16:00:21 PST"]
[Termination "Game drawn by repetition"]

1. b3 {[%clk 0:02:50.2]} 1... b6 {[%clk 0:02:59.6]} 2. Bb2 {[%clk 0:02:50.7]}
2... Bb7 {[%clk 0:03:00.5]} 3. Nf3 {[%clk 0:02:49.6]} 3... Nf6 {[%clk
0:03:00.7]} 4. g3 {[%clk 0:02:50.1]} 4... e6 {[%clk 0:03:01.1]} 5. Bg2 {[%clk
0:02:50.1]} 5... Be7 {[%clk 0:03:01.5]} 6. O-O {[%clk 0:02:50.7]} 6... O-O
{[%clk 0:03:01.8]} 7. c4 {[%clk 0:02:51.3]} 7... c5 {[%clk 0:03:01.8]} 8. d4
{[%clk 0:02:49.3]} 8... cxd4 {[%clk 0:02:58.8]} 9. Nxd4 {[%clk 0:02:49.4]} 9...
Bxg2 {[%clk 0:02:59]} 10. Kxg2 {[%clk 0:02:50]} 10... Nc6 {[%clk 0:02:59.8]} 11.
Nc3 {[%clk 0:02:49.5]} 11... Rc8 {[%clk 0:02:57.6]} 12. Nxc6 {[%clk 0:02:42]}
12... dxc6 {[%clk 0:02:58.5]} 13. Qxd8 {[%clk 0:02:41]} 13... Rfxd8 {[%clk
0:02:59.4]} 14. Rfd1 {[%clk 0:02:37.7]} 14... Kf8 {[%clk 0:02:59.4]} 15. Rxd8+
{[%clk 0:02:37.7]} 15... Rxd8 {[%clk 0:03:00.1]} 16. Rd1 {[%clk 0:02:37.5]}
16... Rxd1 {[%clk 0:03:00]} 17. Nxd1 {[%clk 0:02:37.4]} 17... Ke8 {[%clk
0:02:59.3]} 18. f3 {[%clk 0:02:35.2]} 18... g6 {[%clk 0:02:58.4]} 19. e4 {[%clk
0:02:35.6]} 19... Nd7 {[%clk 0:02:57.4]} 20. Kf1 {[%clk 0:02:35.3]} 20... Bf6
{[%clk 0:02:56.1]} 21. Bxf6 {[%clk 0:02:33.9]} 21... Nxf6 {[%clk 0:02:57]} 22.
Ke2 {[%clk 0:02:33.9]} 22... e5 {[%clk 0:02:56]} 23. Nf2 {[%clk 0:02:26.7]}
23... Ke7 {[%clk 0:02:55.4]} 24. Nd3 {[%clk 0:02:26.2]} 24... Nd7 {[%clk
0:02:55.5]} 25. f4 {[%clk 0:02:23.3]} 25... Kd6 {[%clk 0:02:53.4]} 26. b4 {[%clk
0:02:14.7]} 26... f6 {[%clk 0:02:51.3]} 27. a3 {[%clk 0:02:13.4]} 27... c5
{[%clk 0:02:45.6]} 28. b5 {[%clk 0:02:11.3]} 28... Nf8 {[%clk 0:02:45.5]} 29.
Ke3 {[%clk 0:01:54.9]} 29... Ne6 {[%clk 0:02:44.9]} 30. fxe5+ {[%clk 0:01:53.7]}
30... fxe5 {[%clk 0:02:44.3]} 31. a4 {[%clk 0:01:54.1]} 31... Nd4 {[%clk
0:02:43.5]} 32. h3 {[%clk 0:01:52.1]} 32... h5 {[%clk 0:02:31.7]} 33. Nb2 {[%clk
0:01:50]} 33... Ke6 {[%clk 0:02:21.9]} 34. Nd3 {[%clk 0:01:46.7]} 34... Kf6
{[%clk 0:02:19.7]} 35. h4 {[%clk 0:01:41.6]} 35... Ke6 {[%clk 0:02:19]} 36. Nb2
{[%clk 0:01:39.2]} 36... Nc2+ {[%clk 0:02:13.4]} 37. Kd2 {[%clk 0:01:37.1]}
37... Nd4 {[%clk 0:02:12.4]} 38. Ke3 {[%clk 0:01:37.4]} 38... Kd6 {[%clk
0:02:11.7]} 39. Nd3 {[%clk 0:01:35.1]} 39... Nc2+ {[%clk 0:02:09.1]} 40. Kd2
{[%clk 0:01:34.1]} 40... Nd4 {[%clk 0:02:08.3]} 41. Ke3 {[%clk 0:01:33.8]} 41...
Nb3 {[%clk 0:02:01.7]} 42. Nb2 {[%clk 0:01:32.5]} 42... Na5 {[%clk 0:01:55.2]}
43. Kd3 {[%clk 0:01:31.6]} 43... Nb3 {[%clk 0:01:55.2]} 44. Ke3 {[%clk
0:01:27.6]} 44... Nd4 {[%clk 0:01:54.4]} 45. Kd3 {[%clk 0:01:27.3]} 45... Ne6
{[%clk 0:01:53.6]} 46. Ke3 {[%clk 0:01:27.5]} 46... Nd4 {[%clk 0:01:47]} 1/2-1/2

[Event "Late-Titled-Tuesday-Blitz-March-05-2024"]
[Site "Chess.com"]
[Date "2024.03.05"]
[Round "11"]
[White "Zallio"]
[Black "Teidi96"]
[Result "0-1"]
[WhiteElo "2155"]
[BlackElo "2312"]
[TimeControl "180+1"]
[EndTime "16:00:23 PST"]
[Termination "Teidi96 won by resignation"]

1. d4 {[%clk 0:03:00.9]} 1... Nf6 {[%clk 0:02:55.5]} 2. Nf3 {[%clk 0:03:01.1]}
2... d5 {[%clk 0:02:55.4]} 3. e3 {[%clk 0:03:01.5]} 3... e6 {[%clk 0:02:56.3]}
4. Be2 {[%clk 0:03:01.6]} 4... Be7 {[%clk 0:02:57.2]} 5. O-O {[%clk 0:03:02.3]}
5... O-O {[%clk 0:02:58.1]} 6. b3 {[%clk 0:03:02.9]} 6... b6 {[%clk 0:02:58.7]}
7. Bb2 {[%clk 0:03:03.5]} 7... Bb7 {[%clk 0:02:59.4]} 8. Nbd2 {[%clk 0:03:02.8]}
8... Nbd7 {[%clk 0:02:59.6]} 9. c4 {[%clk 0:03:03.3]} 9... c5 {[%clk 0:03:00.2]}
10. Rc1 {[%clk 0:03:01.5]} 10... Rc8 {[%clk 0:03:00.8]} 11. Re1 {[%clk
0:03:01.3]} 11... Re8 {[%clk 0:03:00.8]} 12. Ne5 {[%clk 0:02:57.9]} 12... Nxe5
{[%clk 0:02:58.2]} 13. dxe5 {[%clk 0:02:57.8]} 13... Ne4 {[%clk 0:02:58.9]} 14.
cxd5 {[%clk 0:02:51.5]} 14... Bxd5 {[%clk 0:02:52.6]} 15. Nxe4 {[%clk
0:02:44.3]} 15... Bxe4 {[%clk 0:02:52.2]} 16. Qxd8 {[%clk 0:02:44.8]} 16...
Rexd8 {[%clk 0:02:53.1]} 17. Red1 {[%clk 0:02:45.3]} 17... Rxd1+ {[%clk
0:02:51.4]} 18. Rxd1 {[%clk 0:02:45.2]} 18... Rd8 {[%clk 0:02:52.1]} 19. f3
{[%clk 0:02:38.7]} 19... Rxd1+ {[%clk 0:02:47.7]} 20. Bxd1 {[%clk 0:02:39.6]}
20... Bb1 {[%clk 0:02:48.1]} 21. a4 {[%clk 0:02:33.6]} 21... Bd3 {[%clk
0:02:42.8]} 22. Kf2 {[%clk 0:02:30.5]} 22... Kf8 {[%clk 0:02:42.7]} 23. Ke1
{[%clk 0:02:30.1]} 23... c4 {[%clk 0:02:41.3]} 24. bxc4 {[%clk 0:02:16.4]} 24...
Bb4+ {[%clk 0:02:40.2]} 25. Kf2 {[%clk 0:02:15.3]} 25... Bxc4 {[%clk 0:02:40]}
26. Bd4 {[%clk 0:02:09]} 26... Ke7 {[%clk 0:02:34.4]} 27. e4 {[%clk 0:02:09.2]}
27... Kd7 {[%clk 0:02:26]} 28. Ke3 {[%clk 0:02:04.1]} 28... Kc6 {[%clk
0:02:25.8]} 29. Be2 {[%clk 0:01:54.6]} 29... Bxe2 {[%clk 0:02:09.6]} 30. Kxe2
{[%clk 0:01:54.7]} 30... a5 {[%clk 0:02:08.1]} 31. Kd3 {[%clk 0:01:51.3]} 31...
b5 {[%clk 0:02:08.5]} 32. axb5+ {[%clk 0:01:50]} 32... Kxb5 {[%clk 0:02:09.1]}
33. f4 {[%clk 0:01:48.7]} 33... a4 {[%clk 0:02:03.7]} 34. f5 {[%clk 0:01:46.6]}
34... a3 {[%clk 0:02:02.6]} 35. Kc2 {[%clk 0:01:46.1]} 35... Kc4 {[%clk
0:02:02]} 36. Ba1 {[%clk 0:01:43.5]} 36... Bc5 {[%clk 0:02:01.6]} 37. g4 {[%clk
0:01:18.9]} 37... Bd4 {[%clk 0:02:00.5]} 38. Kb1 {[%clk 0:01:19.4]} 38... Bxa1
{[%clk 0:01:57.1]} 39. Kxa1 {[%clk 0:01:20.3]} 39... Kd4 {[%clk 0:01:57.1]} 40.
g5 {[%clk 0:01:14.6]} 40... Kxe5 {[%clk 0:01:56.7]} 41. h4 {[%clk 0:01:09.8]}
41... exf5 {[%clk 0:01:54.7]} 42. exf5 {[%clk 0:01:09.5]} 42... Kxf5 {[%clk
0:01:55.6]} 43. Ka2 {[%clk 0:01:08]} 43... Kg4 {[%clk 0:01:55.2]} 0-1